[Event "Early Titled Tuesday Blitz | February 8 2022"]
[White "Kukula, Pawel"]
[Black "Jaivardhan Raj"]
[WhiteFideId "1115081"]
[BlackFideId "25744437"]
[WhiteElo "2203"]
[BlackElo "1375"]
[Result "0-1"]
[Round "06"]
[TimeControl "180+1"]
[Date "2022.02.08"]
[WhiteClock "0:00:10"]
[BlackClock "0:00:21"]

1. Nc3 {[%clk 0:02:59]}  d5 {[%clk 0:03:00]} 2. e4 {[%clk 0:02:59]}  d4 {[%clk 0:02:58]} 3. Nce2 {[%clk 0:02:59]}  e5 {[%clk 0:02:58]} 4. Nf3 {[%clk 0:02:59]}  Bd6 {[%clk 0:02:55]} 5. Ng3 {[%clk 0:02:59]}  c5 {[%clk 0:02:55]} 6. Bc4 {[%clk 0:02:59]}  Nc6 {[%clk 0:02:52]} 7. O-O {[%clk 0:02:59]}  h6 {[%clk 0:02:46]} 8. a3 {[%clk 0:02:58]}  a6 {[%clk 0:02:44]} 9. d3 {[%clk 0:02:58]}  Nf6 {[%clk 0:02:42]} 10. Nh4 {[%clk 0:02:52]}  Ne7 {[%clk 0:02:36]} 11. f4 {[%clk 0:02:43]}  exf4 {[%clk 0:02:20]} 12. Bxf4 {[%clk 0:02:44]}  Bxf4 {[%clk 0:02:12]} 13. Rxf4 {[%clk 0:02:45]}  Nc6 {[%clk 0:02:10]} 14. Nhf5 {[%clk 0:02:39]}  O-O {[%clk 0:01:52]} 15. Nh5 {[%clk 0:02:27]}  Nxh5 {[%clk 0:01:38]} 16. Qxh5 {[%clk 0:02:28]}  Bxf5 {[%clk 0:01:27]} 17. Rxf5 {[%clk 0:02:23]}  Qe7 {[%clk 0:01:13]} 18. Raf1 {[%clk 0:02:20]}  Nd8 {[%clk 0:01:11]} 19. Rxc5 {[%clk 0:02:14]}  b5 {[%clk 0:01:09]} 20. Bb3 {[%clk 0:02:07]}  Kh8 {[%clk 0:01:00]} 21. Qe5 {[%clk 0:01:58]}  Ne6 {[%clk 0:00:40]} 22. Bxe6 {[%clk 0:01:35]}  fxe6 {[%clk 0:00:36]} 23. Rxf8+ {[%clk 0:01:18]}  Rxf8 {[%clk 0:00:35]} 24. Qxd4 {[%clk 0:01:14]}  Qf7 {[%clk 0:00:35]} 25. Kh1 {[%clk 0:00:34]}  Qf1+ {[%clk 0:00:27]} 26. Qg1 {[%clk 0:00:33]}  Qe2 {[%clk 0:00:27]} 27. Rf5 {[%clk 0:00:11]}  exf5 {[%clk 0:00:23]} 28. e5 {[%clk 0:00:12]}  Qxe5 {[%clk 0:00:22]} 29. h3 {[%clk 0:00:13]}  Re8 {[%clk 0:00:22]} 30. Qb6 {[%clk 0:00:10]}  Qg3 {[%clk 0:00:21]} 0-1


[Site "https://www.chess.com"]

[Event "Early Titled Tuesday Blitz | February 8 2022"]
[White "Lagunov, Evgenij"]
[Black "Dovbnia, Nikita"]
[WhiteFideId "4125363"]
[BlackFideId "54104599"]
[WhiteElo "2200"]
[BlackElo "2111"]
[Result "1-0"]
[Round "06"]
[TimeControl "180+1"]
[Date "2022.02.08"]
[WhiteClock "0:00:10"]
[BlackClock "0:00:16"]

1. e4 {[%clk 0:03:00]}  c5 {[%clk 0:02:59]} 2. Nf3 {[%clk 0:03:00]}  Nc6 {[%clk 0:03:00]} 3. d4 {[%clk 0:03:00]}  cxd4 {[%clk 0:03:00]} 4. Nxd4 {[%clk 0:03:00]}  e5 {[%clk 0:03:01]} 5. Nb5 {[%clk 0:02:57]}  d6 {[%clk 0:03:02]} 6. c4 {[%clk 0:02:56]}  Be7 {[%clk 0:02:58]} 7. N1c3 {[%clk 0:02:55]}  a6 {[%clk 0:02:57]} 8. Na3 {[%clk 0:02:55]}  f5 {[%clk 0:02:50]} 9. Bd3 {[%clk 0:02:50]}  f4 {[%clk 0:02:49]} 10. Bd2 {[%clk 0:02:37]}  Nf6 {[%clk 0:02:47]} 11. Nc2 {[%clk 0:02:36]}  Be6 {[%clk 0:02:43]} 12. Qe2 {[%clk 0:02:35]}  Qd7 {[%clk 0:02:29]} 13. O-O-O {[%clk 0:02:34]}  O-O {[%clk 0:02:21]} 14. Kb1 {[%clk 0:02:28]}  Na7 {[%clk 0:01:56]} 15. g3 {[%clk 0:02:18]}  fxg3 {[%clk 0:01:55]} 16. hxg3 {[%clk 0:02:16]}  b5 {[%clk 0:01:48]} 17. f3 {[%clk 0:02:05]}  Rfc8 {[%clk 0:01:41]} 18. Nd5 {[%clk 0:02:00]}  bxc4 {[%clk 0:01:33]} 19. Bxc4 {[%clk 0:01:57]}  Bxd5 {[%clk 0:01:12]} 20. exd5 {[%clk 0:01:47]}  Nb5 {[%clk 0:01:09]} 21. g4 {[%clk 0:01:38]}  Qc7 {[%clk 0:01:03]} 22. Bd3 {[%clk 0:01:31]}  Rab8 {[%clk 0:00:48]} 23. Ka1 {[%clk 0:01:26]}  Qb7 {[%clk 0:00:38]} 24. Rb1 {[%clk 0:01:16]}  Qxd5 {[%clk 0:00:28]} 25. g5 {[%clk 0:01:12]}  Nd7 {[%clk 0:00:25]} 26. Bxh7+ {[%clk 0:01:10]}  Kf8 {[%clk 0:00:25]} 27. Bg6 {[%clk 0:01:07]}  Qg8 {[%clk 0:00:22]} 28. Qe4 {[%clk 0:00:56]}  Rxc2 {[%clk 0:00:06]} 29. Qxc2 {[%clk 0:00:54]}  Nd4 {[%clk 0:00:06]} 30. Qd3 {[%clk 0:00:41]}  Nc5 {[%clk 0:00:06]} 31. Qc3 {[%clk 0:00:33]}  Ncb3+ {[%clk 0:00:06]} 32. axb3 {[%clk 0:00:32]}  Nxb3+ {[%clk 0:00:07]} 33. Qxb3 {[%clk 0:00:17]}  Rxb3 {[%clk 0:00:08]} 34. Rbc1 {[%clk 0:00:14]}  Rxf3 {[%clk 0:00:08]} 35. Rc8+ {[%clk 0:00:13]}  Bd8 {[%clk 0:00:09]} 36. Rxd8+ {[%clk 0:00:13]}  Ke7 {[%clk 0:00:10]} 37. Rxg8 {[%clk 0:00:13]}  Rd3 {[%clk 0:00:10]} 38. Bxd3 {[%clk 0:00:11]}  Kf7 {[%clk 0:00:10]} 39. Rhh8 {[%clk 0:00:09]}  Ke6 {[%clk 0:00:10]} 40. Bg6 {[%clk 0:00:07]}  Kd5 {[%clk 0:00:11]} 41. Bf7+ {[%clk 0:00:06]}  Kd4 {[%clk 0:00:12]} 42. Rxg7 {[%clk 0:00:07]}  d5 {[%clk 0:00:13]} 43. Bc1 {[%clk 0:00:07]}  e4 {[%clk 0:00:14]} 44. Kb1 {[%clk 0:00:07]}  e3 {[%clk 0:00:14]} 45. Bxe3+ {[%clk 0:00:08]}  Kd3 {[%clk 0:00:15]} 46. g6 {[%clk 0:00:08]}  d4 {[%clk 0:00:16]} 47. Rgg8 {[%clk 0:00:08]}  dxe3 {[%clk 0:00:16]} 48. Rd8+ {[%clk 0:00:09]}  Ke2 {[%clk 0:00:16]} 49. Rhe8 {[%clk 0:00:09]}  Kf1 {[%clk 0:00:16]} 50. Rxe3 {[%clk 0:00:09]}  Kf2 {[%clk 0:00:16]} 51. Re6 {[%clk 0:00:09]}  Kg3 {[%clk 0:00:14]} 52. Rxa6 {[%clk 0:00:10]}  Kg2 {[%clk 0:00:15]} 53. g7 {[%clk 0:00:10]}  Kg1 {[%clk 0:00:16]} 54. g8=Q+ {[%clk 0:00:10]} 1-0


[Site "https://www.chess.com"]

[Event "Early Titled Tuesday Blitz | February 8 2022"]
[White "Lashkin, Jegor"]
[Black "Abdusattorov, Nodirbek"]
[WhiteFideId "13907808"]
[BlackFideId "14204118"]
[WhiteElo "2344"]
[BlackElo "2663"]
[Result "1-0"]
[Round "06"]
[TimeControl "180+1"]
[Date "2022.02.08"]
[WhiteClock "0:00:56"]
[BlackClock "0:00:02"]

1. d4 {[%clk 0:03:00]}  Nf6 {[%clk 0:02:59]} 2. c4 {[%clk 0:03:01]}  e6 {[%clk 0:02:59]} 3. Nf3 {[%clk 0:03:01]}  c5 {[%clk 0:02:59]} 4. d5 {[%clk 0:03:01]}  exd5 {[%clk 0:03:00]} 5. cxd5 {[%clk 0:03:01]}  d6 {[%clk 0:03:01]} 6. Nc3 {[%clk 0:03:01]}  g6 {[%clk 0:03:01]} 7. h3 {[%clk 0:03:01]}  Bg7 {[%clk 0:03:00]} 8. e4 {[%clk 0:03:02]}  O-O {[%clk 0:02:58]} 9. Bd3 {[%clk 0:03:02]}  b5 {[%clk 0:02:56]} 10. Nxb5 {[%clk 0:03:02]}  Nxe4 {[%clk 0:02:37]} 11. Bxe4 {[%clk 0:03:03]}  Re8 {[%clk 0:02:26]} 12. Ng5 {[%clk 0:03:03]}  f5 {[%clk 0:01:56]} 13. O-O {[%clk 0:02:57]}  fxe4 {[%clk 0:01:54]} 14. Re1 {[%clk 0:02:58]}  a6 {[%clk 0:01:45]} 15. Nc3 {[%clk 0:02:53]}  Ra7 {[%clk 0:01:13]} 16. Ngxe4 {[%clk 0:02:43]}  Rf7 {[%clk 0:01:02]} 17. Bg5 {[%clk 0:02:39]}  Qd7 {[%clk 0:01:02]} 18. Qd2 {[%clk 0:02:31]}  Ref8 {[%clk 0:00:58]} 19. Bh6 {[%clk 0:02:25]}  Qd8 {[%clk 0:00:47]} 20. Bxg7 {[%clk 0:02:24]}  Kxg7 {[%clk 0:00:48]} 21. Re2 {[%clk 0:02:11]}  h6 {[%clk 0:00:47]} 22. Rae1 {[%clk 0:02:10]}  Kh7 {[%clk 0:00:33]} 23. Qe3 {[%clk 0:02:04]}  Bf5 {[%clk 0:00:31]} 24. Qg3 {[%clk 0:02:02]}  Rd7 {[%clk 0:00:26]} 25. Nd2 {[%clk 0:01:55]}  h5 {[%clk 0:00:14]} 26. Nf3 {[%clk 0:01:49]}  Qf6 {[%clk 0:00:13]} 27. Ng5+ {[%clk 0:01:49]}  Kg8 {[%clk 0:00:13]} 28. Ne6 {[%clk 0:01:35]}  Re8 {[%clk 0:00:09]} 29. Nxc5 {[%clk 0:01:25]}  Rxe2 {[%clk 0:00:08]} 30. Rxe2 {[%clk 0:01:25]}  Rf7 {[%clk 0:00:05]} 31. Re8+ {[%clk 0:01:20]}  Rf8 {[%clk 0:00:03]} 32. Rxf8+ {[%clk 0:01:17]}  Qxf8 {[%clk 0:00:04]} 33. N5e4 {[%clk 0:01:15]}  Nd7 {[%clk 0:00:03]} 34. Qxd6 {[%clk 0:01:15]}  Qxd6 {[%clk 0:00:03]} 35. Nxd6 {[%clk 0:01:16]}  Bd3 {[%clk 0:00:03]} 36. Nde4 {[%clk 0:01:10]}  Kf8 {[%clk 0:00:03]} 37. f3 {[%clk 0:01:09]}  Ne5 {[%clk 0:00:04]} 38. b3 {[%clk 0:01:09]}  Bc2 {[%clk 0:00:03]} 39. Kf2 {[%clk 0:01:07]}  Bd3 {[%clk 0:00:02]} 40. Ke3 {[%clk 0:01:01]}  Bf1 {[%clk 0:00:02]} 41. Kf2 {[%clk 0:01:00]}  Bd3 {[%clk 0:00:02]} 42. g4 {[%clk 0:00:59]}  hxg4 {[%clk 0:00:03]} 43. hxg4 {[%clk 0:00:59]}  a5 {[%clk 0:00:03]} 44. Ke3 {[%clk 0:00:59]}  Bf1 {[%clk 0:00:03]} 45. g5 {[%clk 0:00:57]}  Ke7 {[%clk 0:00:03]} 46. f4 {[%clk 0:00:57]}  Nf7 {[%clk 0:00:02]} 47. Kd4 {[%clk 0:00:57]}  Bg2 {[%clk 0:00:02]} 48. a3 {[%clk 0:00:56]} 1-0


[Site "https://www.chess.com"]

[Event "Early Titled Tuesday Blitz | February 8 2022"]
[White "Liyanage, Ranindu Dilshan"]
[Black "Nilsen, Tobias Lang"]
[WhiteFideId "9915834"]
[BlackFideId "1521624"]
[WhiteElo "1858"]
[BlackElo "2013"]
[Result "0-1"]
[Round "06"]
[TimeControl "180+1"]
[Date "2022.02.08"]
[WhiteClock "0:01:01"]
[BlackClock "0:00:04"]

1. e4 {[%clk 0:03:00]}  Nf6 {[%clk 0:02:57]} 2. e5 {[%clk 0:03:00]}  Nd5 {[%clk 0:02:57]} 3. d4 {[%clk 0:03:01]}  d6 {[%clk 0:02:56]} 4. Nf3 {[%clk 0:03:01]}  dxe5 {[%clk 0:02:54]} 5. Nxe5 {[%clk 0:03:02]}  c6 {[%clk 0:02:54]} 6. Bd3 {[%clk 0:02:59]}  g6 {[%clk 0:02:53]} 7. a3 {[%clk 0:02:57]}  Bg7 {[%clk 0:02:52]} 8. O-O {[%clk 0:02:58]}  O-O {[%clk 0:02:43]} 9. Qe2 {[%clk 0:02:57]}  Nd7 {[%clk 0:02:43]} 10. c4 {[%clk 0:02:51]}  Nc7 {[%clk 0:02:36]} 11. Rd1 {[%clk 0:02:48]}  Nf6 {[%clk 0:02:21]} 12. Nc3 {[%clk 0:02:38]}  Ne6 {[%clk 0:02:03]} 13. Be3 {[%clk 0:02:24]}  Qc7 {[%clk 0:02:01]} 14. Nf3 {[%clk 0:02:19]}  Rd8 {[%clk 0:01:58]} 15. g3 {[%clk 0:02:07]}  Ng4 {[%clk 0:01:56]} 16. d5 {[%clk 0:02:05]}  Nxe3 {[%clk 0:01:43]} 17. Qxe3 {[%clk 0:02:06]}  cxd5 {[%clk 0:01:28]} 18. Nxd5 {[%clk 0:01:58]}  Qc5 {[%clk 0:01:26]} 19. Qe2 {[%clk 0:01:50]}  a5 {[%clk 0:01:10]} 20. b4 {[%clk 0:01:42]}  Qd6 {[%clk 0:00:58]} 21. Rac1 {[%clk 0:01:41]}  axb4 {[%clk 0:00:53]} 22. axb4 {[%clk 0:01:42]}  Bd7 {[%clk 0:00:45]} 23. Be4 {[%clk 0:01:37]}  Qb8 {[%clk 0:00:18]} 24. Nxe7+ {[%clk 0:01:34]}  Kf8 {[%clk 0:00:17]} 25. Nd5 {[%clk 0:01:32]}  Ra4 {[%clk 0:00:16]} 26. Nb6 {[%clk 0:01:26]}  Be8 {[%clk 0:00:13]} 27. Nxa4 {[%clk 0:01:23]}  Bxa4 {[%clk 0:00:13]} 28. Rxd8+ {[%clk 0:01:23]}  Qxd8 {[%clk 0:00:14]} 29. Bxb7 {[%clk 0:01:21]}  g5 {[%clk 0:00:14]} 30. Bd5 {[%clk 0:01:21]}  g4 {[%clk 0:00:14]} 31. Ne5 {[%clk 0:01:18]}  Nd4 {[%clk 0:00:14]} 32. Qe4 {[%clk 0:01:15]}  Nb3 {[%clk 0:00:11]} 33. Re1 {[%clk 0:01:08]}  Nd2 {[%clk 0:00:06]} 34. Qf5 {[%clk 0:01:07]}  Qf6 {[%clk 0:00:05]} 35. Nd7+ {[%clk 0:01:06]}  Bxd7 {[%clk 0:00:04]} 36. Re8+ {[%clk 0:01:07]}  Bxe8 {[%clk 0:00:04]} 37. Qd3 {[%clk 0:01:02]}  Nf3+ {[%clk 0:00:04]} 38. Kg2 {[%clk 0:01:01]}  Ne1+ {[%clk 0:00:04]} 0-1


[Site "https://www.chess.com"]

[Event "Early Titled Tuesday Blitz | February 8 2022"]
[White "Ljukin, Sergei"]
[Black "Begunov, Konstantin"]
[WhiteFideId "14102200"]
[BlackFideId "4118510"]
[WhiteElo "2312"]
[BlackElo "2262"]
[Result "0-1"]
[Round "06"]
[TimeControl "180+1"]
[Date "2022.02.08"]
[WhiteClock "0:00:01"]
[BlackClock "0:00:47"]

1. e4 {[%clk 0:02:58]}  c5 {[%clk 0:02:58]} 2. Nf3 {[%clk 0:02:57]}  d6 {[%clk 0:02:59]} 3. d4 {[%clk 0:02:58]}  cxd4 {[%clk 0:02:59]} 4. Nxd4 {[%clk 0:02:59]}  Nf6 {[%clk 0:02:59]} 5. Nc3 {[%clk 0:02:59]}  a6 {[%clk 0:02:59]} 6. Bg5 {[%clk 0:02:59]}  e6 {[%clk 0:02:58]} 7. f4 {[%clk 0:02:59]}  Qb6 {[%clk 0:02:58]} 8. Qd3 {[%clk 0:02:58]}  Nc6 {[%clk 0:02:58]} 9. O-O-O {[%clk 0:02:55]}  Bd7 {[%clk 0:02:57]} 10. e5 {[%clk 0:02:28]}  Nxd4 {[%clk 0:02:32]} 11. Qxd4 {[%clk 0:02:22]}  Qxd4 {[%clk 0:02:29]} 12. Rxd4 {[%clk 0:02:22]}  dxe5 {[%clk 0:02:24]} 13. fxe5 {[%clk 0:02:22]}  Ng8 {[%clk 0:02:21]} 14. Be2 {[%clk 0:02:21]}  Bc6 {[%clk 0:02:21]} 15. Rhd1 {[%clk 0:02:16]}  Be7 {[%clk 0:02:17]} 16. Bxe7 {[%clk 0:02:10]}  Nxe7 {[%clk 0:02:17]} 17. Bf3 {[%clk 0:02:10]}  Bxf3 {[%clk 0:02:09]} 18. gxf3 {[%clk 0:02:09]}  Nc6 {[%clk 0:02:09]} 19. Re4 {[%clk 0:01:45]}  Ke7 {[%clk 0:02:08]} 20. f4 {[%clk 0:01:43]}  Rhd8 {[%clk 0:02:07]} 21. Ree1 {[%clk 0:01:43]}  Nd4 {[%clk 0:01:59]} 22. Ne4 {[%clk 0:01:40]}  Nf3 {[%clk 0:01:52]} 23. Re2 {[%clk 0:01:29]}  Rxd1+ {[%clk 0:01:49]} 24. Kxd1 {[%clk 0:01:28]}  Rd8+ {[%clk 0:01:50]} 25. Kc1 {[%clk 0:01:28]}  Rd4 {[%clk 0:01:36]} 26. c3 {[%clk 0:01:23]}  Rd5 {[%clk 0:01:11]} 27. Kc2 {[%clk 0:00:41]}  b5 {[%clk 0:01:07]} 28. b4 {[%clk 0:00:36]}  Nh4 {[%clk 0:01:00]} 29. Rd2 {[%clk 0:00:14]}  Ng6 {[%clk 0:01:00]} 30. Rxd5 {[%clk 0:00:12]}  exd5 {[%clk 0:01:01]} 31. Nc5 {[%clk 0:00:13]}  Nxf4 {[%clk 0:00:59]} 32. Nxa6 {[%clk 0:00:13]}  Kd7 {[%clk 0:00:54]} 33. Kb3 {[%clk 0:00:10]}  Nd3 {[%clk 0:00:50]} 34. a4 {[%clk 0:00:06]}  bxa4+ {[%clk 0:00:50]} 35. Kxa4 {[%clk 0:00:06]}  Nxe5 {[%clk 0:00:50]} 36. Kb5 {[%clk 0:00:05]}  f5 {[%clk 0:00:49]} 37. Kc5 {[%clk 0:00:05]}  f4 {[%clk 0:00:50]} 38. Kd4 {[%clk 0:00:05]}  f3 {[%clk 0:00:49]} 39. Ke3 {[%clk 0:00:04]}  g5 {[%clk 0:00:49]} 40. Nc5+ {[%clk 0:00:03]}  Kc6 {[%clk 0:00:50]} 41. Ne6 {[%clk 0:00:02]}  g4 {[%clk 0:00:50]} 42. Nd4+ {[%clk 0:00:01]}  Kb6 {[%clk 0:00:47]} 0-1


[Site "https://www.chess.com"]

[Event "Early Titled Tuesday Blitz | February 8 2022"]
[White "Loay, Sameer"]
[Black "Dronavalli, Harika"]
[WhiteFideId "8104239"]
[BlackFideId "5015197"]
[WhiteElo "2040"]
[BlackElo "2382"]
[Result "0-1"]
[Round "06"]
[TimeControl "180+1"]
[Date "2022.02.08"]
[WhiteClock "0:00:17"]
[BlackClock "0:01:14"]

1. Nf3 {[%clk 0:01:29]}  Nf6 {[%clk 0:02:58]} 2. g3 {[%clk 0:01:30]}  g6 {[%clk 0:02:59]} 3. Bg2 {[%clk 0:01:31]}  Bg7 {[%clk 0:02:59]} 4. O-O {[%clk 0:01:32]}  O-O {[%clk 0:03:00]} 5. d3 {[%clk 0:01:31]}  d5 {[%clk 0:02:57]} 6. c3 {[%clk 0:01:32]}  Nc6 {[%clk 0:02:57]} 7. Nbd2 {[%clk 0:01:32]}  e5 {[%clk 0:02:57]} 8. e4 {[%clk 0:01:32]}  h6 {[%clk 0:02:57]} 9. Re1 {[%clk 0:01:33]}  Re8 {[%clk 0:02:57]} 10. exd5 {[%clk 0:01:33]}  Nxd5 {[%clk 0:02:57]} 11. Nc4 {[%clk 0:01:34]}  Nb6 {[%clk 0:02:44]} 12. Qc2 {[%clk 0:01:33]}  Bf5 {[%clk 0:02:41]} 13. Nxb6 {[%clk 0:01:33]}  Bxd3 {[%clk 0:02:17]} 14. Qd1 {[%clk 0:01:33]}  axb6 {[%clk 0:02:17]} 15. Be3 {[%clk 0:01:33]}  e4 {[%clk 0:02:13]} 16. Nd2 {[%clk 0:01:33]}  f5 {[%clk 0:02:12]} 17. Qc1 {[%clk 0:01:19]}  Kh7 {[%clk 0:02:12]} 18. h4 {[%clk 0:01:19]}  Qf6 {[%clk 0:02:06]} 19. Nf1 {[%clk 0:01:14]}  Rad8 {[%clk 0:02:03]} 20. a4 {[%clk 0:01:13]}  Ne5 {[%clk 0:02:02]} 21. Nh2 {[%clk 0:01:08]}  Bc4 {[%clk 0:01:53]} 22. Qc2 {[%clk 0:00:59]}  Qf7 {[%clk 0:01:45]} 23. Ra3 {[%clk 0:00:46]}  Nd3 {[%clk 0:01:44]} 24. Rea1 {[%clk 0:00:47]}  Bf8 {[%clk 0:01:43]} 25. b3 {[%clk 0:00:43]}  Be6 {[%clk 0:01:42]} 26. R3a2 {[%clk 0:00:42]}  Bxb3 {[%clk 0:01:42]} 27. Qe2 {[%clk 0:00:37]}  Bxa2 {[%clk 0:01:42]} 28. Rxa2 {[%clk 0:00:38]}  Bg7 {[%clk 0:01:42]} 29. a5 {[%clk 0:00:37]}  bxa5 {[%clk 0:01:40]} 30. Rxa5 {[%clk 0:00:38]}  b6 {[%clk 0:01:40]} 31. Ra7 {[%clk 0:00:38]}  Rd7 {[%clk 0:01:39]} 32. c4 {[%clk 0:00:38]}  Ne5 {[%clk 0:01:38]} 33. c5 {[%clk 0:00:36]}  bxc5 {[%clk 0:01:38]} 34. h5 {[%clk 0:00:36]}  gxh5 {[%clk 0:01:36]} 35. Bh3 {[%clk 0:00:35]}  Red8 {[%clk 0:01:34]} 36. Kg2 {[%clk 0:00:32]}  Ng4 {[%clk 0:01:34]} 37. Bf4 {[%clk 0:00:32]}  c4 {[%clk 0:01:32]} 38. Nf1 {[%clk 0:00:32]}  c3 {[%clk 0:01:31]} 39. Ne3 {[%clk 0:00:26]}  Bd4 {[%clk 0:01:30]} 40. Nxg4 {[%clk 0:00:23]}  hxg4 {[%clk 0:01:30]} 41. Ra6 {[%clk 0:00:23]}  gxh3+ {[%clk 0:01:29]} 42. Kxh3 {[%clk 0:00:24]}  Bf6 {[%clk 0:01:22]} 43. g4 {[%clk 0:00:21]}  Rd3+ {[%clk 0:01:21]} 44. Kh2 {[%clk 0:00:21]}  Qg6 {[%clk 0:01:16]} 45. Be5 {[%clk 0:00:17]}  Bxe5+ {[%clk 0:01:14]} 0-1


[Site "https://www.chess.com"]

[Event "Early Titled Tuesday Blitz | February 8 2022"]
[White "Lorparizangeneh, Shahin"]
[Black "Brunner, Nicolas"]
[WhiteFideId "12521604"]
[BlackFideId "620246"]
[WhiteElo "2525"]
[BlackElo "2372"]
[Result "1-0"]
[Round "06"]
[TimeControl "180+1"]
[Date "2022.02.08"]
[WhiteClock "0:00:25"]
[BlackClock "0:00:03"]

1. e4 {[%clk 0:03:00]}  e5 {[%clk 0:02:59]} 2. Nf3 {[%clk 0:03:01]}  Nc6 {[%clk 0:02:59]} 3. Bb5 {[%clk 0:03:01]}  a6 {[%clk 0:02:59]} 4. Ba4 {[%clk 0:03:02]}  Nf6 {[%clk 0:02:58]} 5. O-O {[%clk 0:03:02]}  Be7 {[%clk 0:02:58]} 6. d3 {[%clk 0:03:02]}  b5 {[%clk 0:02:54]} 7. Bb3 {[%clk 0:03:02]}  d6 {[%clk 0:02:55]} 8. a4 {[%clk 0:02:59]}  Bd7 {[%clk 0:02:52]} 9. h3 {[%clk 0:02:55]}  O-O {[%clk 0:02:51]} 10. Nc3 {[%clk 0:02:56]}  Na5 {[%clk 0:02:48]} 11. Ba2 {[%clk 0:02:53]}  b4 {[%clk 0:02:40]} 12. Nd5 {[%clk 0:02:49]}  Nxd5 {[%clk 0:02:40]} 13. Bxd5 {[%clk 0:02:50]}  c6 {[%clk 0:02:38]} 14. Ba2 {[%clk 0:02:50]}  Be6 {[%clk 0:02:31]} 15. Bxe6 {[%clk 0:02:46]}  fxe6 {[%clk 0:02:31]} 16. d4 {[%clk 0:02:43]}  exd4 {[%clk 0:02:30]} 17. Nxd4 {[%clk 0:02:44]}  Qd7 {[%clk 0:02:29]} 18. Qg4 {[%clk 0:02:36]}  Rf6 {[%clk 0:02:22]} 19. f4 {[%clk 0:02:24]}  c5 {[%clk 0:02:15]} 20. Ne2 {[%clk 0:02:06]}  Raf8 {[%clk 0:02:09]} 21. b3 {[%clk 0:02:01]}  Rg6 {[%clk 0:02:08]} 22. Qf3 {[%clk 0:01:59]}  Bf6 {[%clk 0:02:05]} 23. Rb1 {[%clk 0:01:58]}  Nc6 {[%clk 0:02:02]} 24. f5 {[%clk 0:01:52]}  Bd4+ {[%clk 0:01:40]} 25. Kh1 {[%clk 0:01:35]}  Ne5 {[%clk 0:01:39]} 26. Qh5 {[%clk 0:00:55]}  exf5 {[%clk 0:01:20]} 27. exf5 {[%clk 0:00:52]}  Qc6 {[%clk 0:01:13]} 28. Bg5 {[%clk 0:00:46]}  Rxf5 {[%clk 0:00:13]} 29. Rxf5 {[%clk 0:00:46]}  h6 {[%clk 0:00:14]} 30. Rbf1 {[%clk 0:00:28]}  Rxg5 {[%clk 0:00:13]} 31. Rxg5 {[%clk 0:00:29]}  hxg5 {[%clk 0:00:14]} 32. Qxg5 {[%clk 0:00:29]}  Qe4 {[%clk 0:00:14]} 33. Ng3 {[%clk 0:00:27]}  Qxc2 {[%clk 0:00:12]} 34. Nf5 {[%clk 0:00:25]}  Nf7 {[%clk 0:00:06]} 35. Qg6 {[%clk 0:00:25]}  Be5 {[%clk 0:00:03]} 36. Ne7+ {[%clk 0:00:25]} 1-0


[Site "https://www.chess.com"]

[Event "Early Titled Tuesday Blitz | February 8 2022"]
[White "Maevsky, Nikolay"]
[Black "Onyshchuk, Volodymyr"]
[WhiteFideId "4198220"]
[BlackFideId "14114038"]
[WhiteElo "2104"]
[BlackElo "2642"]
[Result "1-0"]
[Round "06"]
[TimeControl "180+1"]
[Date "2022.02.08"]
[WhiteClock "0:00:30"]
[BlackClock "0:01:13"]

1. d4 {[%clk 0:03:00]}  d6 {[%clk 0:02:59]} 2. Nf3 {[%clk 0:03:00]}  g6 {[%clk 0:02:59]} 3. c4 {[%clk 0:03:00]}  Bg7 {[%clk 0:02:59]} 4. Nc3 {[%clk 0:03:00]}  e5 {[%clk 0:02:59]} 5. dxe5 {[%clk 0:02:56]}  dxe5 {[%clk 0:02:58]} 6. Qxd8+ {[%clk 0:02:56]}  Kxd8 {[%clk 0:02:59]} 7. Bd2 {[%clk 0:02:50]}  Nd7 {[%clk 0:02:53]} 8. O-O-O {[%clk 0:02:37]}  f6 {[%clk 0:02:53]} 9. g4 {[%clk 0:02:30]}  Ne7 {[%clk 0:02:42]} 10. Bg2 {[%clk 0:02:27]}  a6 {[%clk 0:02:27]} 11. h4 {[%clk 0:01:52]}  h5 {[%clk 0:02:17]} 12. g5 {[%clk 0:01:31]}  f5 {[%clk 0:02:16]} 13. e4 {[%clk 0:01:25]}  f4 {[%clk 0:02:16]} 14. Bh3 {[%clk 0:01:23]}  Ke8 {[%clk 0:02:14]} 15. Nd5 {[%clk 0:01:19]}  Nxd5 {[%clk 0:02:12]} 16. exd5 {[%clk 0:01:10]}  Nc5 {[%clk 0:02:04]} 17. Bxc8 {[%clk 0:01:09]}  Rxc8 {[%clk 0:02:03]} 18. Bc3 {[%clk 0:01:08]}  Kf7 {[%clk 0:01:47]} 19. Nxe5+ {[%clk 0:01:02]}  Bxe5 {[%clk 0:01:47]} 20. Bxe5 {[%clk 0:01:03]}  Rhe8 {[%clk 0:01:47]} 21. Bxf4 {[%clk 0:00:58]}  Re4 {[%clk 0:01:47]} 22. Be3 {[%clk 0:00:54]}  Rxc4+ {[%clk 0:01:46]} 23. Kb1 {[%clk 0:00:54]}  Ne4 {[%clk 0:01:45]} 24. Rc1 {[%clk 0:00:46]}  Rxc1+ {[%clk 0:01:37]} 25. Rxc1 {[%clk 0:00:45]}  Nd6 {[%clk 0:01:37]} 26. Bf4 {[%clk 0:00:44]}  Ke7 {[%clk 0:01:32]} 27. Re1+ {[%clk 0:00:42]}  Kf7 {[%clk 0:01:31]} 28. Re6 {[%clk 0:00:41]}  Nf5 {[%clk 0:01:31]} 29. Rf6+ {[%clk 0:00:36]}  Kg7 {[%clk 0:01:31]} 30. Be5 {[%clk 0:00:33]}  Re8 {[%clk 0:01:29]} 31. Bc3 {[%clk 0:00:32]}  Re7 {[%clk 0:01:14]} 32. Rxf5+ {[%clk 0:00:31]}  Kh7 {[%clk 0:01:13]} 33. Re5 {[%clk 0:00:31]}  Rf7 {[%clk 0:01:13]} 34. Re2 {[%clk 0:00:30]} 1-0


[Site "https://www.chess.com"]

[Event "Early Titled Tuesday Blitz | February 8 2022"]
[White "Maksimenko, Viktor"]
[Black "San, Thit Lwin"]
[WhiteFideId "13710478"]
[BlackFideId "13001272"]
[WhiteElo "2269"]
[BlackElo "2232"]
[Result "1-0"]
[Round "06"]
[TimeControl "180+1"]
[Date "2022.02.08"]
[WhiteClock "0:00:30"]
[BlackClock "0:00:06"]

1. e4 {[%clk 0:03:00]}  Nf6 {[%clk 0:03:00]} 2. Nc3 {[%clk 0:02:57]}  d5 {[%clk 0:03:00]} 3. e5 {[%clk 0:02:53]}  Nfd7 {[%clk 0:03:00]} 4. f4 {[%clk 0:02:48]}  e6 {[%clk 0:03:01]} 5. Nf3 {[%clk 0:02:45]}  c5 {[%clk 0:03:02]} 6. d4 {[%clk 0:02:43]}  Nc6 {[%clk 0:03:03]} 7. Ne2 {[%clk 0:02:42]}  Qb6 {[%clk 0:02:54]} 8. c3 {[%clk 0:02:38]}  cxd4 {[%clk 0:02:53]} 9. cxd4 {[%clk 0:02:36]}  f6 {[%clk 0:02:53]} 10. g3 {[%clk 0:02:30]}  fxe5 {[%clk 0:02:52]} 11. fxe5 {[%clk 0:02:28]}  Bb4+ {[%clk 0:02:51]} 12. Bd2 {[%clk 0:02:28]}  O-O {[%clk 0:02:52]} 13. Bg2 {[%clk 0:02:28]}  Bxd2+ {[%clk 0:02:19]} 14. Qxd2 {[%clk 0:02:27]}  h6 {[%clk 0:02:20]} 15. Rc1 {[%clk 0:02:17]}  a5 {[%clk 0:02:04]} 16. Nf4 {[%clk 0:01:56]}  Ne7 {[%clk 0:01:55]} 17. O-O {[%clk 0:01:53]}  a4 {[%clk 0:01:41]} 18. a3 {[%clk 0:01:50]}  Nf5 {[%clk 0:01:38]} 19. Kh1 {[%clk 0:01:43]}  g5 {[%clk 0:01:17]} 20. Ne2 {[%clk 0:01:26]}  Rf7 {[%clk 0:01:08]} 21. g4 {[%clk 0:01:14]}  Ne7 {[%clk 0:01:05]} 22. Nxg5 {[%clk 0:01:13]}  hxg5 {[%clk 0:00:39]} 23. Qxg5+ {[%clk 0:00:50]}  Rg7 {[%clk 0:00:37]} 24. Qh4 {[%clk 0:00:46]}  Ng6 {[%clk 0:00:32]} 25. Qh6 {[%clk 0:00:40]}  Ndf8 {[%clk 0:00:31]} 26. Ng3 {[%clk 0:00:37]}  Qd8 {[%clk 0:00:16]} 27. Nh5 {[%clk 0:00:35]}  Qe7 {[%clk 0:00:11]} 28. Nf6+ {[%clk 0:00:34]}  Kf7 {[%clk 0:00:10]} 29. Nxd5+ {[%clk 0:00:34]}  Ke8 {[%clk 0:00:10]} 30. Nxe7 {[%clk 0:00:33]}  Rxe7 {[%clk 0:00:11]} 31. Be4 {[%clk 0:00:31]}  Rh7 {[%clk 0:00:06]} 32. Bxg6+ {[%clk 0:00:30]} 1-0


[Site "https://www.chess.com"]